fUSD/lending_fUSD_20240119
["ID","MTS","AMOUNT","RATE_DAILY","PERIOD"]
[312161825,1705674652984,-500.0,0.00022191,2]
[312161826,1705674652994,-500.0,0.00022191,2]
[312161827,1705674653005,-500.0,0.00022191,2]
[312161828,1705674653015,-831.13,0.00022191,2]
[312161829,1705674653025,-807.35,0.00022191,2]
[312161830,1705674653035,-500.0,0.00022191,2]
[312161831,1705674653045,-500.0,0.00022191,2]
[312161832,1705674653055,-3109.38,0.00022191,2]
[312161833,1705674653065,-896.34,0.00022191,2]
[312161834,1705674653075,-687.96,0.00022191,2]
[312161835,1705674653085,-659.78,0.00022191,2]
[312161836,1705674653095,-1114.15,0.00022191,2]
[312161837,1705674653105,-500.0,0.00022191,2]
[312161838,1705674653114,-758.37,0.00022191,2]
[312161839,1705674653123,-312.09560457,0.00022191,2]
[312161840,1705674653133,-500.0,0.00022191,2]
[312161841,1705674653144,-418.69316633,0.00022191,2]
[312161842,1705674653153,-570.22,0.00022191,2]
[312161843,1705674653163,-500.0,0.00022191,2]
[312161844,1705674653173,-500.0,0.00022191,2]
[312161845,1705674653183,-500.0,0.00022191,2]
[312161846,1705674653192,-755.62,0.00022191,2]
[312161847,1705674653202,-500.0,0.00022191,2]
[312161848,1705674653211,-1088.69,0.00022191,2]
[312161849,1705674653223,-500.0,0.00022191,2]
[312161850,1705674653233,-2162.24,0.00022191,2]
[312161851,1705674653243,-500.0,0.00022191,2]
[312161852,1705674653253,-500.0,0.00022191,2]
[312161853,1705674653263,-1062.76,0.00022191,2]
[312161854,1705674653273,-612.29,0.00022191,2]
[312161855,1705674653283,-2396.2,0.00022191,2]
[312161856,1705674653293,-500.0,0.00022191,2]
[312161857,1705674653303,-500.0,0.00022191,2]
[312161858,1705674653314,-565.53,0.00022191,2]
[312161859,1705674653324,-668.85,0.00022191,2]
[312161860,1705674653335,-598.83,0.00022191,2]
[312161861,1705674653345,-508.81,0.00022191,2]
[312161862,1705674653355,-1080.49,0.00022191,2]
[312161863,1705674653365,-2041.51,0.00022191,2]
[312161864,1705674653375,-834.41,0.00022191,2]
[312161865,1705674653386,-604.66,0.00022191,2]
[312161866,1705674653396,-794.08,0.00022191,2]
[312161867,1705674653405,-500.0,0.00022191,2]
[312161868,1705674653415,-500.0,0.00022191,2]
[312161869,1705674653424,-935.21,0.00022191,2]
[312161870,1705674653434,-942.04,0.00022191,2]
[312161871,1705674653444,-500.0,0.00022191,2]
[312161872,1705674653454,-1596.53,0.00022191,2]
[312161873,1705674653463,-992.82,0.00022191,2]
[312161874,1705674653474,-500.0,0.00022191,2]
[312161875,1705674653484,-500.0,0.00022191,2]
[312161876,1705674653494,-841.54,0.00022191,2]
[312161877,1705674653503,-500.0,0.00022191,2]
[312161878,1705674653513,-500.0,0.00022191,2]
[312161879,1705674653523,-500.0,0.00022191,2]
[312161880,1705674653533,-1220.64,0.00022191,2]
[312161881,1705674653543,-907.37,0.00022191,2]
[312161882,1705674653552,-2116.41,0.00022191,2]
[312161883,1705674653562,-500.0,0.00022191,2]
[312161884,1705674653571,-500.0,0.00022191,2]
[312161885,1705674653581,-625.97,0.00022191,2]
[312161886,1705674653590,-3104.05,0.00022191,2]
[312161887,1705674653600,-500.0,0.00022191,2]
[312161888,1705674653940,-1045.61,0.00022191,2]
[312161889,1705674653956,-500.0,0.00022191,2]
[312161890,1705674653966,-500.0,0.00022191,2]
[312161891,1705674653977,-500.0,0.00022191,2]
[312161892,1705674653987,-973.18,0.00022191,2]
[312161893,1705674653997,-156.1,0.00022191,2]
[312161894,1705674654007,-1342.7,0.00022191,2]
[312161895,1705674654017,-500.0,0.00022191,2]
[312161896,1705674654027,-500.0,0.00022191,2]
[312161897,1705674654037,-1590.89,0.00022191,2]
[312161898,1705674654047,-500.0,0.00022191,2]
[312161899,1705674654057,-925.53,0.00022191,2]
[312161900,1705674654067,-774.58,0.00022191,2]
[312161901,1705674654077,-854.66,0.00022191,2]
[312161902,1705674654088,-834.36,0.00022191,2]
[312161903,1705674654097,-500.0,0.00022191,2]
[312161904,1705674654107,-500.0,0.00022191,2]
[312161905,1705674654117,-213.82,0.00022191,2]
[312161906,1705674654126,-1485.93,0.00022191,2]
[312161907,1705674654136,-500.0,0.00022191,2]
[312161908,1705674654148,-1774.31,0.00022191,2]
[312161909,1705674654158,-500.0,0.00022191,2]
[312161910,1705674654168,-500.0,0.00022191,2]
[312161911,1705674654178,-500.0,0.00022191,2]
[312161912,1705674654188,-2260.08,0.00022191,2]
[312161913,1705674654199,-500.0,0.00022191,2]
[312161914,1705674654209,-584.48,0.00022191,2]
[312161915,1705674654219,-1527.06,0.00022191,2]
[312161916,1705674654231,-500.0,0.00022191,2]
[312161917,1705674654241,-319.8518148,0.00022191,2]
[312161918,1705674654251,-804.55,0.00022191,2]
[312161919,1705674654263,-648.29,0.00022191,2]
[312161920,1705674654273,-1390.89,0.00022191,2]
[312161921,1705674654284,-500.0,0.00022191,2]
[312161922,1705674654295,-1877.21,0.00022191,2]
[312161923,1705674654305,-500.0,0.00022191,5]
[312161924,1705674654315,-500.0,0.00022191,2]
[312161925,1705674654326,-900.94,0.00022191,2]
[312161926,1705674654337,-3022.81,0.00022191,2]
[312161927,1705674654347,-1574.26,0.00022191,2]
[312161928,1705674654357,-500.0,0.00022191,2]
[312161929,1705674654367,-500.0,0.00022191,2]
[312161930,1705674654377,-500.0,0.00022191,2]
[312161931,1705674654387,-6093.79,0.00022191,2]
[312161932,1705674654397,-504.54150083,0.00022191,2]
[312161933,1705674654407,-500.0,0.00022191,2]
[312161934,1705674654417,-652.23,0.00022191,2]
[312161935,1705674654427,-1118.13,0.00022191,2]
[312161936,1705674654437,-502.55,0.00022191,2]
[312161937,1705674654447,-1115.85,0.00022191,2]
[312161938,1705674654458,-500.0,0.00022191,2]
[312161939,1705674654468,-2563.91,0.00022191,2]
[312161940,1705674654480,-2341.41,0.00022191,2]
[312161941,1705674654490,-500.0,0.00022191,2]
[312161942,1705674654501,-500.0,0.00022191,2]
[312161943,1705674654511,-810.7,0.00022191,2]
[312161944,1705674654521,-500.0,0.00022191,2]
[312161945,1705674654531,-2005.36,0.00022191,2]
[312161946,1705674654541,-602.05,0.00022191,2]
[312161947,1705674654551,-500.0,0.00022191,2]
[312161948,1705674654561,-1103.28,0.00022191,2]
[312161949,1705674654572,-500.0,0.00022191,2]
[312161950,1705674654582,-500.0,0.00022191,2]
[312161951,1705674654592,-707.49,0.00022191,2]
[312161952,1705674654602,-500.0,0.00022191,2]
[312161953,1705674654612,-581.35,0.00022191,2]
[312161954,1705674654623,-500.0,0.00022191,2]
[312161955,1705674654636,-3924.46,0.00022191,2]
[312161956,1705674654646,-500.0,0.00022191,2]
[312161957,1705674654656,-563.69,0.00022191,2]
[312161958,1705674654667,-500.0,0.00022191,2]
[312161959,1705674654677,-8501.89,0.00022191,2]
[312161960,1705674654687,-500.0,0.00022191,2]
[312161961,1705674654697,-527.48,0.00022191,2]
[312161962,1705674654707,-500.0,0.00022191,2]
[312161963,1705674654718,-500.0,0.00022191,2]
[312161964,1705674654731,-500.0,0.00022191,2]
[312161965,1705674654741,-878.75,0.00022191,2]
[312161966,1705674654752,-3091.25,0.00022191,2]
[312161967,1705674654762,-500.0,0.00022191,2]
[312161968,1705674654772,-500.0,0.00022191,2]
[312161969,1705674654783,-500.0,0.00022191,2]
[312161970,1705674654794,-1693.3,0.00022191,2]
[312161971,1705674654804,-10664.33,0.00022191,2]
[312161972,1705674654815,-500.0,0.00022191,2]
[312161973,1705674654825,-900.55,0.00022191,2]
[312161974,1705674654836,-1585.15,0.00022191,2]
[312161975,1705674654848,-1277.56,0.00022191,2]
[312161976,1705674654858,-1114.75,0.00022191,2]
[312161977,1705674654868,-991.98,0.00022191,2]
[312161978,1705674654878,-854.63,0.00022191,2]
[312161979,1705674654888,-533.58,0.00022191,2]
[312161980,1705674654899,-6410.9,0.00022191,2]
[312161981,1705674654909,-918.55,0.00022191,2]
[312161982,1705674654919,-5442.28,0.00022191,2]
[312161983,1705674654930,-500.0,0.00022191,2]
[312161984,1705674654941,-500.0,0.00022191,2]
[312161985,1705674654951,-1784.06,0.00022191,2]
[312161986,1705674654961,-523.42,0.00022191,2]
[312161987,1705674654974,-875.49,0.00022191,2]
[312161988,1705674654984,-606.49,0.00022191,2]
[312161989,1705674654994,-1009.22,0.00022191,2]
[312161990,1705674655004,-500.0,0.00022191,2]
[312161991,1705674655014,-693.07,0.00022191,2]
[312161992,1705674655025,-554.95,0.00022191,2]
[312161993,1705674655035,-511.36,0.00022191,2]
[312161994,1705674655046,-2140.41,0.00022191,2]
[312161995,1705674655057,-500.0,0.00022191,2]
[312161996,1705674655067,-500.0,0.00022191,2]
[312161997,1705674655077,-3585.07,0.00022191,2]
[312161998,1705674655090,-642.37,0.00022191,2]
[312161999,1705674655100,-2571.91,0.00022191,2]
[312162000,1705674655110,-713.94,0.00022191,2]
[312162001,1705674655120,-816.86,0.00022191,2]
[312162002,1705674655130,-1520.09,0.00022191,2]
[312162003,1705674655139,-2957.01,0.00022191,2]
[312162004,1705674655150,-3111.27,0.00022191,2]
[312162005,1705674655160,-150.15711648,0.00022191,2]
[312162006,1705674655170,-1247.06,0.00022191,2]
[312162007,1705674655179,-2470.98,0.00022191,2]
[312162008,1705674655190,-877.17,0.00022191,2]
[312162009,1705674655200,-16108.31,0.00022191,2]
[312162010,1705674655210,-1420.38,0.00022191,2]
[312162011,1705674655220,-500.0,0.00022191,2]
[312162012,1705674655231,-5889.58,0.00022191,2]
[312162013,1705674655242,-500.0,0.00022191,2]
[312162014,1705674655252,-1031.15,0.00022191,2]
[312162015,1705674655262,-500.0,0.00022191,2]
[312162016,1705674655273,-24836.08,0.00022191,2]
[312162017,1705674655283,-525.39,0.00022191,2]
[312162018,1705674655293,-500.0,0.00022191,2]
[312162019,1705674655303,-621.8,0.00022191,2]
[312162020,1705674655313,-500.0,0.00022191,2]
[312162021,1705674655323,-1007.94,0.00022191,2]
[312162022,1705674655333,-500.0,0.00022191,2]
[312162023,1705674655344,-12531.28,0.00022191,2]
[312162024,1705674655355,-500.0,0.00022191,2]
[312162025,1705674655364,-500.0,0.00022191,2]
[312162026,1705674655374,-500.0,0.00022191,2]
[312162027,1705674655384,-1705.83,0.00022191,2]
[312162028,1705674655394,-557.18,0.00022191,2]
[312162029,1705674655404,-500.0,0.00022191,2]
[312162030,1705674655414,-652.5,0.00022191,2]
[312162031,1705674655424,-1703.36,0.00022191,2]
[312162032,1705674655434,-1441.36,0.00022191,2]
[312162033,1705674655444,-2408.12,0.00022191,2]
[312162034,1705674655454,-727.24,0.00022191,2]
[312162035,1705674655464,-500.0,0.00022191,2]
[312162036,1705674655475,-1152.24,0.00022191,2]
[312162037,1705674655487,-1113.26,0.00022191,2]
[312162038,1705674655497,-1962.06,0.00022191,2]
[312162039,1705674655508,-500.0,0.00022191,2]
[312162040,1705674655518,-573.79,0.00022191,2]
[312162041,1705674655528,-11423.78,0.00022191,2]
[312162042,1705674655538,-4066.04,0.00022191,2]
[312162043,1705674655549,-522.52,0.00022191,2]
[312162044,1705674655559,-500.0,0.00022191,2]
[312162045,1705674655569,-847.61,0.00022191,2]
[312162046,1705674655580,-2220.98,0.00022191,2]
[312162047,1705674655590,-942.58,0.00022191,2]
[312162048,1705674655601,-6566.67,0.00022191,2]
[312162049,1705674655610,-934.08,0.00022191,2]
[312162050,1705674655621,-814.47,0.00022191,2]
[312162051,1705674655631,-800.9,0.00022191,2]
[312162052,1705674655645,-1493.53,0.00022191,2]
[312162053,1705674655656,-823.98,0.00022191,2]
[312162054,1705674655666,-500.0,0.00022191,2]
[312162055,1705674655676,-500.0,0.00022191,2]
[312162056,1705674655686,-500.0,0.00022191,2]
[312162057,1705674655697,-509.76,0.00022191,2]
[312162058,1705674655707,-1278.96,0.00022191,2]
[312162059,1705674655717,-500.0,0.00022191,2]
[312162060,1705674655729,-956.94,0.00022191,2]
[312162061,1705674655740,-500.0,0.00022191,2]
[312162062,1705674655750,-3770.64,0.00022191,2]
[312162063,1705674655761,-1348.79,0.00022191,2]
[312162064,1705674655771,-2516.93,0.00022191,2]
[312162065,1705674655781,-1356.35,0.00022191,2]
[312162066,1705674655791,-500.0,0.00022191,2]
[312162067,1705674655802,-773.29,0.00022191,2]
[312162068,1705674655813,-608.82,0.00022191,2]
[312162069,1705674655823,-500.0,0.00022191,2]
[312162070,1705674655833,-2842.24,0.00022191,2]
[312162071,1705674655844,-500.0,0.00022191,2]
[312162072,1705674655854,-602.48,0.00022191,2]
[312162073,1705674655864,-500.0,0.00022191,2]
[312162074,1705674655875,-500.0,0.00022191,2]
[312162075,1705674655886,-1084.04,0.00022191,2]
[312162076,1705674655896,-2750.19,0.00022191,2]
[312162077,1705674655906,-624.79,0.00022191,2]
[312162078,1705674655916,-863.67,0.00022191,2]
[312162079,1705674655927,-1392.15,0.00022191,2]
[312162080,1705674655937,-977.84,0.00022191,2]
[312162081,1705674655947,-511.75,0.00022191,2]
[312162082,1705674655957,-816.57,0.00022191,2]
[312162083,1705674655968,-564.75,0.00022191,2]
[312162084,1705674655980,-1716.1,0.00022191,2]
[312162085,1705674655990,-1306.13,0.00022191,2]
[312162086,1705674656000,-1125.65,0.00022191,2]
[312162087,1705674656010,-1422.11,0.00022191,2]
[312162088,1705674656020,-1831.27,0.00022191,2]
[312162089,1705674656030,-500.0,0.00022191,2]
[312162090,1705674656040,-894.49,0.00022191,2]
[312162091,1705674656050,-611.36,0.00022191,2]
[312162092,1705674656061,-717.76,0.00022191,2]
[312162093,1705674656071,-1447.39,0.00022191,2]
[312162094,1705674656082,-500.0,0.00022191,2]
[312162095,1705674656092,-500.0,0.00022191,2]
[312162096,1705674656102,-2948.08,0.00022191,2]
[312162097,1705674656111,-717.83,0.00022191,2]
[312162098,1705674656121,-500.0,0.00022191,2]
[312162099,1705674656131,-695.07,0.00022191,2]
[312162100,1705674656141,-754.58,0.00022191,2]
[312162101,1705674656150,-16488.48,0.00022191,2]
[312162102,1705674656160,-3021.97,0.00022191,2]
[312162103,1705674656170,-3427.8,0.00022191,2]
[312162104,1705674656180,-2131.71,0.00022191,2]
[312162105,1705674656189,-500.0,0.00022191,2]
[312162106,1705674656199,-500.0,0.00022191,2]
[312162107,1705674656208,-1009.99,0.00022191,2]
[312162108,1705674656218,-956.0,0.00022191,2]
[312162109,1705674656230,-1506.86,0.00022191,2]
[312162110,1705674656239,-500.0,0.00022191,2]
[312162111,1705674656248,-500.0,0.00022191,2]
[312162112,1705674656258,-1637.62,0.00022191,2]
[312162113,1705674656268,-1201.83,0.00022191,2]
[312162114,1705674656278,-637.98,0.00022191,2]
[312162115,1705674656288,-3998.36,0.00022191,2]
[312162116,1705674656298,-1599.66,0.00022191,2]
[312162117,1705674656308,-1400.83,0.00022191,2]
[312162118,1705674656319,-500.0,0.00022191,2]
[312162119,1705674656329,-500.0,0.00022191,2]
[312162120,1705674656338,-1422.3,0.00022191,2]
[312162121,1705674656348,-924.53,0.00022191,2]
[312162122,1705674656358,-17849.03,0.00022191,2]
[312162123,1705674656368,-500.0,0.00022191,2]
[312162124,1705674656377,-995.96,0.00022191,2]
[312162125,1705674656387,-3330.51,0.00022191,2]
[312162126,1705674656397,-905.92,0.00022191,2]
[312162127,1705674656407,-1401.15,0.00022191,2]
[312162128,1705674656510,-500.0,0.00022191,2]
[312162129,1705674656520,-500.0,0.00022191,2]
[312162130,1705674656530,-1383.55,0.00022191,2]
[312162131,1705674656540,-1506.65,0.00022191,2]
[312162132,1705674656556,-1264.66,0.00022191,2]
[312162133,1705674656579,-500.0,0.00022191,2]
[312162134,1705674656611,-6741.56,0.00022191,2]
[312162135,1705674656638,-500.0,0.00022191,2]
[312162136,1705674656660,-500.0,0.00022191,2]
[312162137,1705674656688,-500.0,0.00022191,2]
[312162138,1705674656722,-604.37,0.00022191,2]
[312162139,1705674656733,-1687.35,0.00022191,2]
[312162140,1705674656742,-516.56,0.00022191,2]
[312162141,1705674656753,-605.05,0.00022191,2]
[312162142,1705674656763,-1288.35,0.00022191,2]
[312162143,1705674656773,-500.0,0.00022191,2]
[312162144,1705674656784,-5391.31,0.00022191,2]
[312162145,1705674656793,-1647.86,0.00022191,2]
[312162146,1705674656803,-500.0,0.00022191,2]
[312162147,1705674656813,-584.47824422,0.00022191,2]
[312162148,1705674656823,-824.94,0.00022191,2]
[312162149,1705674656832,-500.0,0.00022191,2]
[312162150,1705674656842,-654.71,0.00022191,2]
[312162151,1705674656852,-1662.1,0.00022191,2]
[312162152,1705674656862,-500.0,0.00022191,2]
[312162153,1705674656871,-1467.43,0.00022191,2]
[312162154,1705674656882,-541.73,0.00022191,2]
[312162155,1705674656892,-2497.65,0.00022191,2]
[312162156,1705674656902,-827.16,0.00022191,2]
[312162157,1705674656912,-617.14,0.00022191,5]
[312162158,1705674656921,-798.92,0.00022191,2]
[312162159,1705674656931,-1554.52,0.00022191,2]
[312162160,1705674656941,-796.96,0.00022191,2]
[312162161,1705674656951,-1197.62,0.00022191,2]
[312162162,1705674656961,-538.86,0.00022191,2]
[312162163,1705674656971,-500.0,0.00022191,2]
[312162164,1705674656983,-1671.21,0.00022191,2]
[312162165,1705674656992,-1262.62,0.00022191,2]
[312162166,1705674657002,-500.0,0.00022191,2]
[312162167,1705674657012,-500.0,0.00022191,2]
[312162168,1705674657022,-500.0,0.00022191,2]
[312162169,1705674657032,-500.0,0.00022191,2]
[312162170,1705674657042,-1641.24,0.00022191,2]
[312162171,1705674657051,-867.33,0.00022191,2]
[312162172,1705674657061,-500.0,0.00022191,2]
[312162173,1705674657070,-3333.86,0.00022191,2]
[312162174,1705674657080,-561.95,0.00022191,2]
[312162175,1705674657090,-663.45,0.00022191,2]
[312162176,1705674657099,-1040.42,0.00022191,2]
[312162177,1705674657109,-500.0,0.00022191,2]
[312162178,1705674657119,-965.41392225,0.000222,2]
[312162179,1705674657128,-150.0,0.00022202,2]
[312162180,1705674657138,-1274.67845146,0.0002222,2]
[312162181,1705674657147,-755.8,0.00022223,2]
[312162182,1705674657157,-4223.5649433,0.00022224,2]
[312162183,1705674657168,-494.02868803,0.00022238,2]
[312162184,1705674657177,-33896.15762346,0.0002225,2]
[312162185,1705674657187,-151.0,0.0002225,7]
[312162186,1705674657196,-2814591.54971372,0.00022265,3]
[312162187,1705674657206,-18613.64350954,0.00022265,2]
[312162188,1705674657215,-150.0,0.00022282,2]
[312162189,1705674657226,-157.44,0.00022287,2]
[312162190,1705674657235,-150.0,0.00022292,2]
[312162191,1705674657245,-4223.5649433,0.00022292,2]
[312162192,1705674657255,-7986.677283,0.000223,2]
[312162193,1705674657264,-298.71625889,0.00022317,2]
[312162194,1705674657274,-755.8,0.00022349,2]
[312162195,1705674657283,-227.70232845,0.00022351,2]
[312162196,1705674657293,-150.0,0.00022355,2]
[312162197,1705674657303,-4223.5649433,0.00022361,2]
[312162198,1705674657313,-299.19132054,0.00022364,2]
[312162199,1705674657322,-500.0,0.00022364,2]
[312162200,1705674657332,-16205.48821332,0.00022364,2]
[312162201,1705674657342,-836.64,0.00022383,2]
[312162202,1705674657351,-369.64,0.00022383,2]
[312162203,1705674657361,-305.61,0.00022383,2]
[312162204,1705674657371,-300.0,0.00022383,2]
[312162205,1705674657380,-294.11,0.00022383,2]
[312162206,1705674657390,-1274.67845146,0.00022429,2]
[312162207,1705674657399,-18613.64350954,0.0002244,2]
[312162208,1705674657408,-1356.59,0.00022445,2]
[312162209,1705674657417,-202299.156915,0.00022461,2]
[312162210,1705674657427,-16885.9650153,0.00022461,2]
[312162211,1705674657437,-151.0,0.00022461,7]
[312162212,1705674657446,-151.0,0.00022461,7]
[312162213,1705674657455,-260.15368191,0.00022463,2]
[312162214,1705674657465,-155.54996584,0.00022463,2]
[312162215,1705674657476,-200.20676309,0.00022463,2]
[312162216,1705674657485,-158.04475537,0.00022463,2]
[312162217,1705674657495,-249.73965662,0.00022463,2]
[312162218,1705674657505,-255.0640545,0.00022463,2]
[312162219,1705674657516,-155.5410687,0.00022464,2]
[312162220,1705674657526,-215.20285786,0.00022464,2]
[312162221,1705674657535,-335.28400008,0.00022464,2]
[312162222,1705674657545,-3296.87897521,0.00022464,2]
[312162223,1705674657555,-151.0,0.00022465,7]
[312162224,1705674657565,-151.0,0.00022465,7]
[312162225,1705674657575,-1025.2617308,0.00022465,2]
[312162226,1705674657585,-500.0,0.00022465,2]
[312162227,1705674657595,-500.0,0.00022465,2]
[312162228,1705674657605,-182.55722779,0.00022465,2]
[312162229,1705674657615,-707.27,0.00022465,2]
[312162230,1705674657625,-512.07861046,0.00022465,2]
[312162231,1705674657638,-500.0,0.00022465,2]
[312162232,1705674657648,-500.0,0.00022465,2]
[312162233,1705674657658,-902.43,0.00022465,2]
[312162234,1705674657668,-500.0,0.00022465,2]
[312162235,1705674657678,-500.0,0.00022465,2]
[312162236,1705674657688,-500.0,0.00022465,2]
[312162237,1705674657697,-512.07,0.00022465,2]
[312162238,1705674657708,-543.02,0.00022465,2]
[312162239,1705674657718,-785.51,0.00022465,2]
[312162240,1705674657730,-500.0,0.00022465,2]
[312162241,1705674657740,-500.0,0.00022465,2]
[312162242,1705674657750,-500.0,0.00022465,2]
[312162243,1705674657760,-500.0,0.00022465,2]
[312162244,1705674657770,-500.0,0.00022465,2]
[312162245,1705674657779,-500.0,0.00022465,2]
[312162246,1705674657789,-500.0,0.00022465,2]
[312162247,1705674657800,-500.0,0.00022465,2]
[312162248,1705674657809,-500.0,0.00022465,2]
[312162249,1705674657819,-500.0,0.00022465,2]
[312162250,1705674657829,-500.0,0.00022465,2]
[312162251,1705674657839,-521.03,0.00022465,2]
[312162252,1705674657848,-500.0,0.00022465,2]
[312162253,1705674657858,-500.0,0.00022465,2]
[312162254,1705674657868,-541.82927186,0.00022465,2]
[312162255,1705674657877,-571.67,0.00022465,2]
[312162256,1705674657887,-500.0,0.00022465,2]
[312162257,1705674657897,-500.0,0.00022465,2]
[312162258,1705674657908,-346.02915507,0.00022465,2]
[312162259,1705674657918,-500.0,0.00022465,2]
[312162260,1705674657928,-500.0,0.00022465,2]
[312162261,1705674657937,-500.0,0.00022465,2]
[312162262,1705674657947,-500.0,0.00022465,2]
[312162263,1705674657956,-500.0,0.00022465,2]
[312162264,1705674657966,-528.35,0.00022465,2]
[312162265,1705674657976,-500.0,0.00022465,2]
[312162266,1705674657986,-500.0,0.00022465,2]
[312162267,1705674657995,-1000.0,0.00022465,10]
[312162268,1705674658005,-500.0,0.00022465,2]
[312162269,1705674658014,-500.0,0.00022465,2]
[312162270,1705674658024,-500.0,0.00022465,2]
[312162271,1705674658034,-500.0,0.00022465,2]
[312162272,1705674658043,-500.0,0.00022465,2]
[312162273,1705674658053,-500.0,0.00022465,2]
[312162274,1705674658062,-500.0,0.00022465,2]
[312162275,1705674658072,-500.0,0.00022465,2]
[312162276,1705674658081,-500.0,0.00022465,2]
[312162277,1705674658091,-500.0,0.00022465,2]
[312162278,1705674658100,-500.0,0.00022465,2]
[312162279,1705674658110,-170.75398034,0.00022465,2]
[312162280,1705674658119,-803.94,0.00022465,2]
[312162281,1705674658128,-500.0,0.00022465,2]
[312162282,1705674658138,-499.99981618,0.00022465,2]
[312162283,1705674658148,-500.0,0.00022465,2]
[312162284,1705674658158,-500.0,0.00022465,2]
[312162285,1705674658167,-500.0,0.00022465,2]
[312162286,1705674658177,-852.68,0.00022465,2]
[312162287,1705674658186,-500.0,0.00022465,2]
[312162288,1705674658196,-500.0,0.00022465,2]
[312162289,1705674658205,-500.0,0.00022465,2]
[312162290,1705674658215,-500.0,0.00022465,2]
[312162291,1705674658225,-500.0,0.00022465,2]
[312162292,1705674658235,-500.0,0.00022465,2]
[312162293,1705674658244,-500.0,0.00022465,2]
[312162294,1705674658254,-500.0,0.00022465,2]
[312162295,1705674658264,-500.0,0.00022465,2]
[312162296,1705674658274,-500.0,0.00022465,2]
[312162297,1705674658283,-500.0,0.00022465,2]
[312162298,1705674658293,-500.0,0.00022465,2]
[312162299,1705674658302,-506.14,0.00022465,2]
[312162300,1705674658312,-1006.1,0.00022465,2]
[312162301,1705674658321,-526.21856467,0.00022465,2]
[312162302,1705674658331,-500.0,0.00022465,2]
[312162303,1705674658341,-500.0,0.00022465,2]
[312162304,1705674658351,-556.1,0.00022465,2]
[312162305,1705674658360,-500.0,0.00022465,2]
[312162306,1705674658370,-500.0,0.00022465,2]
[312162307,1705674658380,-500.0,0.00022465,2]
[312162308,1705674658389,-500.0,0.00022465,2]
[312162309,1705674658398,-500.0,0.00022465,2]
[312162310,1705674658408,-500.0,0.00022465,2]
[312162311,1705674658418,-500.0,0.00022465,2]
[312162312,1705674658427,-500.0,0.00022465,2]
[312162313,1705674658437,-550.99,0.00022465,2]
[312162314,1705674658447,-500.0,0.00022465,2]
[312162315,1705674658457,-566.41,0.00022465,2]
[312162316,1705674658467,-500.0,0.00022465,2]
[312162317,1705674658477,-500.0,0.00022465,2]
[312162318,1705674658486,-500.0,0.00022465,2]
[312162319,1705674658496,-500.0,0.00022465,2]
[312162320,1705674658506,-343.85155841,0.00022465,2]
[312162321,1705674658515,-756.54,0.00022465,2]
[312162322,1705674658524,-666.97,0.00022465,2]
[312162323,1705674658534,-500.0,0.00022465,2]
[312162324,1705674658543,-864.28,0.00022465,2]